fUST/lending_fUST_20250302
["ID","MTS","AMOUNT","RATE_DAILY","PERIOD"]
[354968679,1740850243532,-500.0,0.00026024,2]
[354968680,1740850243543,-500.0,0.00026024,2]
[354968681,1740850243553,-566.88,0.00026024,2]
[354968682,1740850243564,-993.18,0.00026024,2]
[354968683,1740850243574,-1065.31,0.00026024,2]
[354968684,1740850243583,-540.76,0.00026024,2]
[354968685,1740850243593,-913.99,0.00026024,2]
[354968686,1740850243603,-500.0,0.00026024,2]
[354968687,1740850243613,-1473.06,0.00026024,2]
[354968688,1740850243623,-500.0,0.00026024,2]
[354968689,1740850243633,-500.0,0.00026024,2]
[354968690,1740850243643,-500.0,0.00026024,2]
[354968691,1740850243653,-1180.32,0.00026024,2]
[354968692,1740850243663,-654.74,0.00026024,2]
[354968693,1740850243672,-500.0,0.00026024,2]
[354968694,1740850243682,-12406.79,0.00026024,2]
[354968695,1740850243692,-1082.74,0.00026024,2]
[354968696,1740850243702,-36730.99,0.00026024,2]
[354968697,1740850243713,-500.0,0.00026024,2]
[354968698,1740850243724,-1114.28,0.00026024,2]
[354968699,1740850243734,-500.0,0.00026024,2]
[354968700,1740850243744,-6655.6,0.00026024,2]
[354968701,1740850243755,-1832.87,0.00026024,2]
[354968702,1740850243765,-554.85,0.00026024,2]
[354968703,1740850243775,-613.87,0.00026024,2]
[354968704,1740850243785,-4058.98,0.00026024,2]
[354968705,1740850243796,-1511.24,0.00026024,2]
[354968706,1740850243805,-500.0,0.00026024,2]
[354968707,1740850243816,-500.0,0.00026024,2]
[354968708,1740850243826,-979.21,0.00026024,2]
[354968709,1740850243836,-1702.6,0.00026024,2]
[354968710,1740850243846,-500.0,0.00026024,2]
[354968711,1740850243855,-755.01,0.00026024,2]
[354968712,1740850243865,-1317.18,0.00026024,2]
[354968713,1740850243876,-765.47,0.00026024,2]
[354968714,1740850243886,-500.0,0.00026024,2]
[354968715,1740850243896,-500.0,0.00026024,2]
[354968717,1740850243906,-4961.4,0.00026024,2]
[354968718,1740850243916,-500.0,0.00026024,2]
[354968720,1740850243926,-500.0,0.00026024,2]
[354968721,1740850243935,-5963.79,0.00026024,2]
[354968722,1740850243945,-500.0,0.00026024,2]
[354968723,1740850243955,-2511.29,0.00026024,2]
[354968724,1740850243966,-500.0,0.00026024,2]
[354968725,1740850243977,-740.88,0.00026024,2]
[354968726,1740850243987,-4983.12,0.00026024,2]
[354968727,1740850243996,-755.48,0.00026024,2]
[354968728,1740850244006,-1032.65,0.00026024,2]
[354968729,1740850244016,-8690.49,0.00026024,2]
[354968730,1740850244026,-500.0,0.00026024,2]
[354968731,1740850244036,-500.0,0.00026024,2]
[354968732,1740850244046,-1168.59,0.00026024,2]
[354968733,1740850244056,-2770.23,0.00026024,2]
[354968734,1740850244066,-794.1,0.00026024,2]
[354968735,1740850244075,-500.0,0.00026024,2]
[354968736,1740850244085,-1884.28,0.00026024,2]
[354968737,1740850244094,-263.33209096,0.00026024,2]
[354968738,1740850244104,-2485.61,0.00026024,2]
[354968739,1740850244114,-500.0,0.00026024,2]
[354968740,1740850244123,-500.0,0.00026024,2]
[354968741,1740850244133,-500.0,0.00026024,2]
[354968742,1740850244143,-1007.38,0.00026024,2]
[354968743,1740850244152,-500.0,0.00026024,2]
[354968744,1740850244162,-500.0,0.00026024,2]
[354968745,1740850244171,-179156.33,0.00026024,2]
[354968746,1740850244181,-500.0,0.00026024,2]
[354968747,1740850244190,-500.0,0.00026024,2]
[354968748,1740850244200,-500.0,0.00026024,2]
[354968749,1740850244210,-860.66,0.00026025,2]
[354968750,1740850244220,-500.0,0.00026025,2]
[354968751,1740850244230,-500.0,0.00026025,2]
[354968752,1740850244240,-500.0,0.00026025,2]
[354968753,1740850244250,-796.63,0.00026025,2]
[354968754,1740850244260,-500.0,0.00026025,2]
[354968755,1740850244269,-500.0,0.00026025,2]
[354968756,1740850244279,-500.0,0.00026025,2]
[354968757,1740850244289,-500.0,0.00026025,2]
[354968758,1740850244299,-500.0,0.00026025,2]
[354968759,1740850244309,-500.0,0.00026025,2]
[354968760,1740850244319,-500.0,0.00026025,2]
[354968761,1740850244329,-500.0,0.00026025,2]
[354968762,1740850244338,-500.0,0.00026025,2]
[354968763,1740850244348,-500.0,0.00026025,2]
[354968764,1740850244357,-500.0,0.00026025,2]
[354968765,1740850244367,-500.0,0.00026025,2]
[354968766,1740850244376,-500.0,0.00026025,2]
[354968767,1740850244386,-500.0,0.00026025,2]
[354968768,1740850244396,-500.0,0.00026025,2]
[354968769,1740850244406,-364.97873975,0.00026025,2]
[354968770,1740850244416,-500.0,0.00026025,2]
[354968771,1740850244425,-738.07,0.00026025,2]
[354968772,1740850244435,-500.0,0.00026025,2]
[354968773,1740850244446,-500.0,0.00026025,2]
[354968774,1740850244458,-500.0,0.00026025,2]
[354968775,1740850244468,-509.55,0.00026025,2]
[354968776,1740850244478,-500.0,0.00026025,2]
[354968777,1740850244488,-618.06,0.00026025,2]
[354968778,1740850244499,-500.0,0.00026025,2]
[354968779,1740850244508,-565.76,0.00026025,2]
[354968780,1740850244518,-780.24,0.00026025,2]
[354968781,1740850244530,-574.42600429,0.00026025,2]
[354968782,1740850244540,-997.95,0.00026025,2]
[354968783,1740850244551,-500.0,0.00026025,2]
[354968784,1740850244561,-500.0,0.00026025,2]
[354968785,1740850244571,-500.0,0.00026025,2]
[354968786,1740850244581,-500.0,0.00026025,2]
[354968787,1740850244591,-500.0,0.00026025,2]
[354968788,1740850244601,-500.0,0.00026025,2]
[354968789,1740850244611,-500.0,0.00026025,2]
[354968790,1740850244621,-1554.66,0.00026025,2]
[354968791,1740850244630,-1254.76,0.00026025,2]
[354968792,1740850244640,-500.0,0.00026025,2]
[354968793,1740850244649,-926.19,0.00026025,2]
[354968794,1740850244659,-500.0,0.00026025,2]
[354968795,1740850244668,-500.0,0.00026025,2]
[354968796,1740850244678,-533.55066739,0.00026025,2]
[354968797,1740850244687,-500.0,0.00026025,2]
[354968798,1740850244697,-500.0,0.00026025,2]
[354968799,1740850244707,-500.0,0.00026025,2]
[354968800,1740850244717,-500.0,0.00026025,2]
[354968801,1740850244726,-500.0,0.00026025,2]
[354968802,1740850244736,-536.45,0.00026025,2]
[354968803,1740850244746,-500.0,0.00026025,2]
[354968804,1740850244755,-536.86769473,0.00026025,2]
[354968805,1740850244765,-500.0,0.00026025,2]
[354968806,1740850244775,-500.0,0.00026025,2]
[354968807,1740850244785,-500.0,0.00026025,2]
[354968808,1740850244794,-1019.17,0.00026025,2]
[354968809,1740850244803,-277.51506063,0.00026025,2]
[354968810,1740850244813,-624.44,0.00026025,2]
[354968811,1740850244823,-500.0,0.00026025,2]
[354968812,1740850244833,-810.59,0.00026025,2]
[354968813,1740850244843,-1008.44,0.00026025,2]
[354968814,1740850244853,-1683.64,0.00026025,2]
[354968815,1740850244862,-500.0,0.00026025,2]
[354968816,1740850244872,-1377.74,0.00026025,2]
[354968817,1740850244881,-500.0,0.00026025,2]
[354968818,1740850244891,-500.0,0.00026025,2]
[354968819,1740850244900,-500.0,0.00026025,2]
[354968820,1740850244910,-594.1,0.00026025,2]
[354968821,1740850244919,-202.89545868,0.00026025,2]
[354968822,1740850244929,-500.0,0.00026025,2]
[354968823,1740850244938,-703.96,0.00026025,2]
[354968824,1740850244947,-500.0,0.00026025,2]
[354968825,1740850244958,-500.0,0.00026025,2]
[354968826,1740850244967,-500.0,0.00026025,2]
[354968827,1740850244976,-500.0,0.00026025,2]
[354968828,1740850244985,-500.0,0.00026025,2]
[354968829,1740850244996,-688.07,0.00026025,2]
[354968830,1740850245005,-500.0,0.00026025,2]
[354968831,1740850245014,-675.85,0.00026025,2]
[354968832,1740850245024,-500.0,0.00026025,2]
[354968833,1740850245033,-500.0,0.00026025,2]
[354968834,1740850245043,-500.0,0.00026025,2]
[354968835,1740850245052,-500.0,0.00026025,2]
[354968836,1740850245062,-500.0,0.00026025,2]
[354968837,1740850245071,-500.0,0.00026025,2]
[354968838,1740850245081,-508.18433206,0.00026025,2]
[354968839,1740850245090,-563.07,0.00026025,2]
[354968840,1740850245100,-813.95,0.00026025,2]
[354968841,1740850245109,-500.0,0.00026025,2]
[354968842,1740850245119,-3004.0,0.00026025,2]
[354968843,1740850245129,-500.0,0.00026025,2]
[354968844,1740850245138,-500.0,0.00026025,2]
[354968845,1740850245148,-1823.08,0.00026025,2]
[354968846,1740850245158,-500.0,0.00026025,2]
[354968847,1740850245167,-1881.63,0.00026025,2]
[354968848,1740850245177,-500.0,0.00026025,2]
[354968849,1740850245186,-508.74774967,0.00026025,2]
[354968850,1740850245196,-500.0,0.00026025,2]
[354968851,1740850245205,-500.0,0.00026025,2]
[354968852,1740850245216,-500.0,0.00026025,2]
[354968853,1740850245225,-1174.37,0.00026025,2]
[354968854,1740850245234,-500.0,0.00026025,2]
[354968855,1740850245244,-560.17873018,0.00026025,2]
[354968856,1740850245253,-580.41,0.00026025,2]
[354968857,1740850245263,-500.0,0.00026025,2]
[354968858,1740850245272,-500.0,0.00026025,2]
[354968859,1740850245282,-500.0,0.00026025,2]
[354968860,1740850245291,-320.22280286,0.00026025,2]
[354968861,1740850245301,-500.0,0.00026025,2]
[354968862,1740850245310,-500.0,0.00026025,2]
[354968863,1740850245320,-500.0,0.00026025,2]
[354968864,1740850245329,-500.0,0.00026025,2]
[354968865,1740850245339,-500.0,0.00026025,2]
[354968866,1740850245348,-500.0,0.00026025,2]
[354968867,1740850245357,-777.16,0.00026025,2]
[354968868,1740850245367,-500.0,0.00026025,2]
[354968869,1740850245377,-500.0,0.00026025,2]
[354968870,1740850245387,-500.0,0.00026025,2]
[354968871,1740850245397,-500.0,0.00026025,2]
[354968872,1740850245406,-500.0,0.00026025,2]
[354968873,1740850245417,-500.0,0.00026025,2]
[354968874,1740850245426,-196.14217479,0.00026025,2]
[354968875,1740850245436,-500.0,0.00026025,2]
[354968876,1740850245448,-892.64,0.00026025,2]
[354968877,1740850245459,-500.0,0.00026025,2]
[354968878,1740850245468,-500.0,0.00026025,2]
[354968879,1740850245477,-500.0,0.00026025,2]
[354968880,1740850245487,-1321.24,0.00026025,2]
[354968881,1740850245496,-500.0,0.00026025,2]
[354968882,1740850245506,-876.98,0.00026025,2]
[354968883,1740850245516,-500.0,0.00026025,2]
[354968884,1740850245526,-2719.88,0.00026025,2]
[354968885,1740850245535,-500.0,0.00026025,2]
[354968886,1740850245545,-500.0,0.00026025,2]
[354968887,1740850245555,-500.0,0.00026025,2]
[354968888,1740850245564,-500.0,0.00026025,2]
[354968889,1740850245574,-501.60491329,0.00026025,2]
[354968890,1740850245583,-500.0,0.00026025,2]
[354968891,1740850245593,-500.0,0.00026025,2]
[354968892,1740850245603,-500.0,0.00026025,2]
[354968893,1740850245613,-916.91,0.00026025,2]
[354968894,1740850245623,-524.01,0.00026025,2]
[354968895,1740850245633,-3572.76,0.00026025,2]
[354968896,1740850245643,-500.0,0.00026025,2]
[354968897,1740850245652,-831.37,0.00026025,2]
[354968898,1740850245662,-507.49376202,0.00026025,2]
[354968899,1740850245672,-500.0,0.00026025,2]
[354968900,1740850245681,-584.07,0.00026025,2]
[354968901,1740850245691,-9398.49,0.00026025,2]
[354968902,1740850245700,-4612.98,0.00026025,2]
[354968903,1740850245711,-1646.92,0.00026025,2]
[354968904,1740850245721,-639.84732129,0.00026025,2]
[354968905,1740850245731,-500.0,0.00026025,2]
[354968906,1740850245741,-500.0,0.00026025,2]
[354968907,1740850245750,-500.0,0.00026025,2]
[354968908,1740850245760,-2182.38,0.00026025,2]
[354968909,1740850245769,-883.33,0.00026025,2]
[354968910,1740850245779,-500.0,0.00026025,2]
[354968911,1740850245788,-402.5862081,0.00026025,2]
[354968912,1740850245798,-1037.7,0.00026025,2]
[354968913,1740850245808,-516.64,0.00026025,2]
[354968914,1740850245818,-1465.95,0.00026025,2]
[354968915,1740850245827,-738.49,0.00026025,2]
[354968916,1740850245837,-500.0,0.00026025,2]
[354968917,1740850245847,-500.0,0.00026025,2]
[354968918,1740850245856,-1458.84,0.00026025,2]
[354968919,1740850245866,-500.0,0.00026025,2]
[354968920,1740850245876,-500.0,0.00026025,2]
[354968921,1740850245885,-1323.64,0.00026025,2]
[354968922,1740850245895,-591.43,0.00026025,2]
[354968923,1740850245905,-1411.91,0.00026025,2]
[354968924,1740850245980,-1209.7,0.00026025,2]
[354968925,1740850245991,-500.0,0.00026025,2]
[354968926,1740850246000,-639.39,0.00026025,2]
[354968927,1740850246010,-500.0,0.00026025,2]
[354968928,1740850246019,-509.33,0.00026025,2]
[354968929,1740850246029,-1841.61,0.00026025,2]
[354968930,1740850246038,-500.0,0.00026025,2]
[354968931,1740850246047,-500.0,0.00026025,2]
[354968932,1740850246057,-611.12,0.00026025,2]
[354968933,1740850246066,-5295.68,0.00026025,2]
[354968934,1740850246075,-500.0,0.00026025,2]
[354968935,1740850246085,-500.0,0.00026025,2]
[354968936,1740850246094,-500.0,0.00026025,2]
[354968937,1740850246104,-500.0,0.00026025,2]
[354968938,1740850246113,-500.0,0.00026025,2]
[354968939,1740850246122,-500.0,0.00026025,2]
[354968940,1740850246132,-13291.67,0.00026025,2]
[354968941,1740850246142,-500.0,0.00026025,2]
[354968942,1740850246151,-828.82,0.00026025,2]
[354968943,1740850246161,-1520.56,0.00026025,2]
[354968944,1740850246170,-500.0,0.00026025,2]
[354968945,1740850246179,-500.0,0.00026025,2]
[354968946,1740850246189,-786.23,0.00026025,2]
[354968947,1740850246198,-545.69,0.00026025,2]
[354968948,1740850246207,-523.19070809,0.00026025,2]
[354968949,1740850246216,-490.32903665,0.00026025,2]
[354968950,1740850246226,-174.50398571,0.00026025,2]
[354968951,1740850246235,-500.0,0.00026025,2]
[354968952,1740850246245,-500.0,0.00026025,2]
[354968953,1740850246254,-500.0,0.00026025,2]
[354968955,1740850246264,-500.0,0.00026025,2]
[354968956,1740850246274,-500.0,0.00026025,2]
[354968957,1740850246284,-785.17,0.00026025,2]
[354968958,1740850246293,-500.0,0.00026025,2]
[354968959,1740850246303,-500.0,0.00026025,2]
[354968960,1740850246312,-609.79,0.00026025,2]
[354968961,1740850246321,-500.0,0.00026073,2]
[354968962,1740850246331,-503.88447595,0.00026073,2]
[354968963,1740850246340,-500.0,0.00026073,2]
[354968964,1740850246350,-500.0,0.00026073,2]
[354968965,1740850246359,-500.0,0.00026073,2]
[354968966,1740850246368,-299.45155416,0.00026073,2]
[354968967,1740850246377,-500.0,0.00026073,2]
[354968968,1740850246386,-500.0,0.00026073,2]
[354968969,1740850246396,-506.6658801,0.00026073,2]
[354968970,1740850246406,-500.0,0.00026073,2]
[354968971,1740850246416,-500.0,0.00026073,2]
[354968973,1740850246425,-509.92537316,0.00026073,2]
[354968974,1740850246435,-500.0,0.00026073,2]
[354968975,1740850246445,-500.0,0.00026073,2]
[354968976,1740850246455,-500.0,0.00026073,2]
[354968977,1740850246466,-500.0,0.00026073,2]
[354968978,1740850246475,-500.0,0.00026073,2]
[354968979,1740850246485,-500.0,0.00026073,2]
[354968980,1740850246495,-500.0,0.00026073,2]
[354968982,1740850246504,-500.0,0.00026073,2]
[354968983,1740850246514,-500.0,0.00026073,2]
[354968984,1740850246525,-500.0,0.00026073,2]
[354968985,1740850246534,-500.0,0.00026073,2]
[354968986,1740850246544,-500.0,0.00026073,2]
[354968987,1740850246553,-265.72516935,0.00026101,2]
[354968988,1740850246563,-2024.51,0.00026117,2]
[354968989,1740850246572,-1964.53082829,0.00026257,2]
[354968990,1740850246581,-8417.99,0.00026297,2]
[354968991,1740850246590,-2231.37,0.00026297,2]
[354968992,1740850246600,-1000.0,0.00026297,5]
[354968993,1740850246609,-1265.28,0.00026297,2]
[354968994,1740850246618,-745.33,0.00026297,2]
[354968995,1740850246627,-788.16,0.00026297,2]
[354968996,1740850246637,-500.0,0.00026297,2]
[354968997,1740850246646,-500.0,0.00026297,2]
[354968998,1740850246655,-3225.88,0.00026297,2]
[354968999,1740850246665,-500.0,0.00026298,2]
[354969000,1740850246674,-500.0,0.00026298,2]
[354969001,1740850246683,-500.0,0.00026298,2]
[354969002,1740850246693,-500.71,0.00026298,2]
[354969003,1740850246702,-777.04,0.00026298,2]
[354969004,1740850246712,-500.0,0.00026298,2]
[354969005,1740850246721,-218.81770486,0.00026298,2]
[354969006,1740850246731,-1548.02,0.00026298,2]
[354969007,1740850246740,-1563.09,0.00026298,2]
[354969008,1740850246750,-500.0,0.00026298,2]
[354969009,1740850246759,-500.0,0.00026298,2]
[354969011,1740850246769,-500.0,0.00026298,2]
[354969013,1740850246778,-500.0,0.00026298,2]
[354969014,1740850246787,-961.87,0.00026298,2]
[354969015,1740850246796,-500.0,0.00026298,2]
[354969016,1740850246806,-581.91,0.00026298,2]
[354969017,1740850246815,-500.0,0.00026298,2]
[354969018,1740850246824,-500.0,0.00026298,2]
[354969019,1740850246833,-296.06224926,0.00026298,2]
[354969020,1740850246843,-828.64,0.00026298,2]
[354969021,1740850246851,-500.0,0.00026298,2]
[354969022,1740850246861,-1057.51,0.00026298,2]
[354969023,1740850246870,-500.0,0.00026298,2]
[354969024,1740850246879,-500.0,0.00026298,2]
[354969025,1740850246888,-1728.36,0.00026298,2]
[354969026,1740850246898,-1174.44,0.00026298,2]
[354969027,1740850246907,-677.44,0.00026298,2]
[354969028,1740850246916,-1072.33,0.00026298,2]
[354969029,1740850246926,-500.0,0.00026298,2]
[354969030,1740850246935,-2496.93,0.00026298,2]
[354969031,1740850246945,-564.13,0.00026298,2]
[354969032,1740850246955,-1529.5,0.00026298,2]
[354969033,1740850246965,-1626.72,0.00026298,2]
[354969034,1740850246975,-948.97,0.00026298,2]
[354969035,1740850246985,-1821.85,0.00026298,2]
[354969036,1740850246994,-2334.43,0.00026298,2]
[354969037,1740850247003,-1004.85,0.00026298,2]
[354969038,1740850247013,-1198.71,0.00026298,2]
[354969039,1740850247023,-791.77,0.00026298,2]
[354969040,1740850247032,-1185.64,0.00026298,2]
[354969041,1740850247041,-500.0,0.00026298,2]
[354969042,1740850247051,-1301.17,0.00026298,2]
[354969043,1740850247061,-500.0,0.00026298,2]
[354969044,1740850247070,-500.0,0.00026298,2]
[354969045,1740850247079,-500.0,0.00026298,2]
[354969046,1740850247088,-500.0,0.00026298,2]
[354969047,1740850247098,-566.88,0.00026298,2]
[354969048,1740850247107,-993.18,0.00026298,2]
[354969049,1740850247116,-1065.31,0.00026298,2]
[354969050,1740850247125,-540.76,0.00026298,2]
[354969051,1740850247134,-913.99,0.00026298,2]
[354969052,1740850247143,-500.0,0.00026298,2]
[354969053,1740850247153,-1473.06,0.00026298,2]
[354969054,1740850247162,-500.0,0.00026298,2]
[354969055,1740850247173,-500.0,0.00026298,2]
[354969056,1740850247184,-500.0,0.00026298,2]
[354969057,1740850247194,-1180.32,0.00026298,2]
[354969058,1740850247204,-654.74,0.00026298,2]
[354969059,1740850247214,-500.0,0.00026298,2]
[354969060,1740850247223,-12406.79,0.00026298,2]
[354969061,1740850247232,-1082.74,0.00026298,2]
[354969062,1740850247242,-36730.99,0.00026298,2]
[354969063,1740850247251,-500.0,0.00026298,2]
[354969064,1740850247261,-1114.28,0.00026298,2]
[354969065,1740850247271,-500.0,0.00026298,2]
[354969066,1740850247280,-6655.6,0.00026298,2]
[354969067,1740850247290,-1832.87,0.00026298,2]
[354969068,1740850247300,-554.85,0.00026298,2]
[354969069,1740850247310,-613.87,0.00026298,2]
[354969070,1740850247319,-4058.98,0.00026298,2]
[354969071,1740850247329,-1511.24,0.00026298,2]
[354969072,1740850247339,-500.0,0.00026298,2]
[354969073,1740850247348,-500.0,0.00026298,2]
[354969074,1740850247357,-979.21,0.00026298,2]
[354969075,1740850247367,-1702.6,0.00026298,2]
[354969076,1740850247377,-500.0,0.00026298,2]
[354969077,1740850247386,-755.01,0.00026298,2]
[354969078,1740850247395,-1317.18,0.00026298,2]
[354969079,1740850247405,-765.47,0.00026298,2]
[354969080,1740850247415,-500.0,0.00026298,2]
[354969081,1740850247425,-500.0,0.00026298,2]
[354969082,1740850247434,-4961.4,0.00026298,2]
[354969083,1740850247446,-500.0,0.00026298,2]
[354969084,1740850247461,-500.0,0.00026298,2]
[354969085,1740850247472,-5963.79,0.00026298,2]
[354969086,1740850247483,-500.0,0.00026298,2]
[354969087,1740850247492,-2511.29,0.00026298,2]
[354969088,1740850247502,-500.0,0.00026298,2]
[354969089,1740850247512,-740.88,0.00026298,2]
[354969090,1740850247523,-4983.12,0.00026298,2]
[354969091,1740850247533,-755.48,0.00026298,2]
[354969092,1740850247543,-1032.65,0.00026298,2]
[354969093,1740850247552,-8690.49,0.00026298,2]
[354969094,1740850247562,-500.0,0.00026298,2]
[354969095,1740850247572,-500.0,0.00026298,2]
[354969096,1740850247582,-1168.59,0.00026298,2]
[354969097,1740850247591,-2770.23,0.00026298,2]
[354969098,1740850247601,-794.1,0.00026298,2]
[354969099,1740850247611,-1884.28,0.00026298,2]
[354969100,1740850247620,-2485.61,0.00026298,2]
[354969101,1740850247630,-500.0,0.00026298,2]
[354969102,1740850247639,-500.0,0.00026298,2]
[354969103,1740850247648,-500.0,0.00026298,2]
[354969104,1740850247658,-1007.38,0.00026298,2]
[354969105,1740850247668,-500.0,0.00026298,2]
[354969106,1740850247678,-500.0,0.00026298,2]
[354969107,1740850247687,-105216.85620767,0.00026298,2]
[354969108,1740850247993,-278.00481043,0.00026298,2]
[354969109,1740850248350,-25.53051433,0.00025749,2]
[354969110,1740850249975,-474.46948567,0.00025749,2]
[354969111,1740850249986,-500.0,0.00025749,2]
[354969112,1740850249996,-500.0,0.00025749,2]
[354969113,1740850250006,-500.0,0.0002575,2]
[354969114,1740850250017,-500.0,0.00026023,2]
[354969115,1740850250027,-500.0,0.00026297,2]
[354969116,1740850250037,-797.14728003,0.00026298,2]
[354969117,1740850314637,500.0,0.00024811,2]
[354969118,1740850316966,22288.14371237,0.00025,7]
[354969119,1740850316990,154522.5342755,0.00025,7]
[354970937,1740851156146,-300.0,0.00024047,2]
[354970938,1740851156169,-570.29168824,0.00024048,2]
[354970939,1740851226082,-300.0,0.00024047,2]
[354970940,1740851226105,-260.84138079,0.00024048,2]
[354970941,1740851228083,-354.59438977,0.00024048,2]
[354970945,1740851350107,-300.0,0.00024047,2]
[354970946,1740851350132,-23714.2725412,0.00024048,2]
[354970947,1740851350154,-421.45025885,0.00024198,2]
[354970948,1740851350175,-7753.9775152,0.00024513,2]
[354970949,1740851350197,-500.0,0.00024657,2]
[354970950,1740851350220,-380.0,0.00024658,2]
[354970951,1740851350241,-506.050749,0.00024724,2]
[354970952,1740851350262,-1860.6,0.00024811,2]
[354970953,1740851350283,-500.0,0.00024811,2]
[354970954,1740851350304,-611.51350501,0.00024999,2]
[354970955,1740851350327,-2697.46544187,0.00025,2]
[354970956,1740851350350,-300.0,0.00025277,2]
[354970957,1740851350371,-197.87834524,0.00025377,2]
[354970958,1740851350393,-500.0,0.00025477,2]
[354970959,1740851350416,-500.0,0.00025477,2]
[354970960,1740851350437,-500.0,0.00025553,2]
[354970961,1740851350458,-500.0,0.00025553,2]
[354970962,1740851350480,-500.0,0.00025553,2]
[354970963,1740851350501,-500.0,0.00025553,2]
[354970964,1740851350522,-500.0,0.00025553,2]
[354970965,1740851350544,-500.0,0.00025553,2]
[354970966,1740851350565,-500.0,0.00025553,2]
[354970967,1740851350887,-500.0,0.00025553,2]
[354970968,1740851350911,-500.0,0.00025553,2]
[354970969,1740851350933,-500.0,0.00025553,2]
[354970970,1740851350954,-494.49,0.00025553,2]
[354970971,1740851350974,-500.0,0.00025553,2]
[354970972,1740851350996,-224.32975902,0.00025553,2]
[354970973,1740851351017,-500.0,0.00025553,2]
[354970974,1740851351038,-500.0,0.00025553,2]
[354970975,1740851351063,-500.0,0.00025553,2]
[354970976,1740851351083,-500.0,0.00025553,2]
[354970977,1740851351104,-506.05253832,0.00025553,2]
[354970978,1740851351125,-1041.17,0.00025553,2]
[354970979,1740851351146,-500.0,0.00025553,2]
[354970980,1740851351167,-500.0,0.00025553,2]
[354970981,1740851351188,-500.0,0.00025553,2]
[354970982,1740851351210,-520.03020786,0.00025553,2]
[354970983,1740851351230,-500.0,0.00025553,2]
[354970984,1740851351251,-500.0,0.00025553,2]
[354970985,1740851351272,-59.06471985,0.00025553,2]
[354970988,1740851367095,-440.93528015,0.00025553,2]
[354970989,1740851367117,-500.0,0.00025553,2]
[354970990,1740851367139,-500.0,0.00025553,2]
[354970991,1740851367160,-500.0,0.00025553,2]
[354970992,1740851367182,-500.0,0.00025553,2]
[354970993,1740851367206,-500.0,0.00025553,2]
[354970994,1740851367228,-500.0,0.00025553,2]
[354970995,1740851367250,-500.0,0.00025553,2]
[354970996,1740851367271,-419.6617349,0.00025553,2]
[354970997,1740851367292,-797.91,0.00025553,2]
[354970998,1740851367312,-500.0,0.00025553,2]
[354970999,1740851367333,-500.0,0.00025553,2]
[354971000,1740851367354,-500.0,0.00025553,2]
[354971001,1740851367374,-509.37184616,0.00025553,2]
[354971002,1740851367394,-500.0,0.00025553,2]
[354971003,1740851367414,-540.04,0.00025553,2]
[354971004,1740851367435,-500.0,0.00025553,2]
[354971005,1740851367456,-500.0,0.00025553,2]
[354971006,1740851367476,-500.0,0.00025553,2]
[354971007,1740851367497,-500.0,0.00025553,2]